fUSD/lending_fUSD_20240212
["ID","MTS","AMOUNT","RATE_DAILY","PERIOD"]
[313779861,1707719438841,-1076.74,0.00022947,2]
[313779862,1707719438850,-526.44,0.00022947,2]
[313779863,1707719438859,-624.82114853,0.00022947,2]
[313779864,1707719438868,-569.19886087,0.00022947,2]
[313779865,1707719438877,-1028.28,0.00022947,2]
[313779866,1707719438886,-842.0,0.00022947,2]
[313779867,1707719438895,-500.0,0.00022947,2]
[313779868,1707719438904,-1241.97,0.00022947,2]
[313779869,1707719438913,-500.0,0.00022947,2]
[313779870,1707719438922,-641.62,0.00022947,2]
[313779871,1707719438932,-500.0,0.00022947,2]
[313779872,1707719438941,-500.0,0.00022947,2]
[313779873,1707719438950,-500.0,0.00022947,2]
[313779874,1707719438959,-500.0,0.00022947,2]
[313779875,1707719438968,-500.0,0.00022947,2]
[313779876,1707719438977,-500.0,0.00022947,2]
[313779877,1707719438985,-500.0,0.00022947,2]
[313779878,1707719438994,-422.10062856,0.00022947,2]
[313779879,1707719439004,-500.0,0.00022947,2]
[313779880,1707719439013,-2104.28,0.00022947,2]
[313779881,1707719439022,-500.0,0.00022947,2]
[313779882,1707719439031,-500.0,0.00022947,2]
[313779883,1707719439040,-500.0,0.00022947,2]
[313779884,1707719439050,-533.79,0.00022947,2]
[313779885,1707719439061,-500.0,0.00022947,2]
[313779886,1707719439070,-500.0,0.00022947,2]
[313779887,1707719439079,-500.0,0.00022947,2]
[313779888,1707719439088,-500.0,0.00022947,2]
[313779889,1707719439097,-500.0,0.00022947,2]
[313779890,1707719439106,-732.17,0.00022947,2]
[313779891,1707719439115,-500.0,0.00022947,2]
[313779892,1707719439124,-500.0,0.00022947,2]
[313779893,1707719439132,-594.35,0.00022947,2]
[313779894,1707719439142,-579.70680642,0.00022947,2]
[313779895,1707719439151,-500.0,0.00022947,2]
[313779896,1707719439161,-1092.76,0.00022947,2]
[313779897,1707719439170,-500.0,0.00022947,2]
[313779898,1707719439178,-636.24501629,0.00022947,2]
[313779899,1707719439188,-500.0,0.00022947,2]
[313779900,1707719439198,-500.0,0.00022947,2]
[313779901,1707719439206,-532.84,0.00022947,2]
[313779902,1707719439215,-500.0,0.00022947,2]
[313779903,1707719439225,-500.0,0.00022947,2]
[313779904,1707719439234,-500.0,0.00022947,2]
[313779905,1707719439243,-532.17712349,0.00022947,2]
[313779906,1707719439252,-209.93851882,0.00022947,2]
[313779907,1707719439261,-500.0,0.00022947,2]
[313779908,1707719439270,-500.0,0.00022947,2]
[313779909,1707719439279,-500.0,0.00022947,2]
[313779910,1707719439288,-500.0,0.00022947,2]
[313779911,1707719439297,-500.0,0.00022947,2]
[313779912,1707719439307,-500.0,0.00022947,2]
[313779913,1707719439316,-500.0,0.00022947,2]
[313779914,1707719439325,-500.0,0.00022947,2]
[313779915,1707719439334,-500.0,0.00022947,2]
[313779916,1707719439343,-500.0,0.00022947,2]
[313779917,1707719439352,-500.0,0.00022947,2]
[313779918,1707719439361,-500.0,0.00022947,2]
[313779919,1707719439371,-500.0,0.00022947,2]
[313779920,1707719439380,-291.10090793,0.00022947,2]
[313779921,1707719439389,-564.90620595,0.00022947,2]
[313779922,1707719439399,-500.0,0.00022947,2]
[313779923,1707719439408,-500.0,0.00022947,2]
[313779924,1707719439418,-500.0,0.00022947,2]
[313779925,1707719439428,-500.0,0.00022947,2]
[313779926,1707719439437,-553.70256236,0.00022947,2]
[313779927,1707719439446,-500.0,0.00022947,2]
[313779928,1707719439456,-885.22,0.00022947,2]
[313779929,1707719439465,-500.0,0.00022947,2]
[313779930,1707719439474,-500.0,0.00022947,2]
[313779931,1707719439484,-861.98,0.00022947,2]
[313779932,1707719439493,-500.0,0.00022947,2]
[313779933,1707719439502,-500.0,0.00022947,2]
[313779934,1707719439511,-500.0,0.00022947,2]
[313779935,1707719439521,-500.0,0.00022947,2]
[313779936,1707719439530,-500.0,0.00022947,2]
[313779937,1707719439539,-500.0,0.00022947,2]
[313779938,1707719439547,-303.31890169,0.00022947,2]
[313779939,1707719439561,-196.68109831,0.00022947,2]
[313779940,1707719439570,-356.51568813,0.00022947,2]
[313779941,1707719439660,-143.48431187,0.00022947,2]
[313779942,1707719439669,-500.0,0.00022947,2]
[313779943,1707719439678,-21.40244424,0.00022947,2]
[313779944,1707719439690,-289.4002629,0.00022947,2]
[313779945,1707719439701,-189.19729286,0.00022947,2]
[313779946,1707719439710,-500.0,0.00022947,2]
[313779947,1707719439719,-500.0,0.00022947,2]
[313779948,1707719439728,-500.0,0.00022947,2]
[313779949,1707719439737,-596.37,0.00022947,2]
[313779950,1707719439746,-106.79580842,0.00022947,2]
[313779951,1707719439763,-393.20419158,0.00022947,2]
[313779952,1707719439771,-500.0,0.00022947,2]
[313779953,1707719439781,-571.77770515,0.00022947,2]
[313779954,1707719439793,-547.64229485,0.00022947,2]
[313779955,1707719439802,-500.0,0.00022947,2]
[313779956,1707719439812,-500.0,0.00022947,2]
[313779957,1707719439821,-500.0,0.00022947,2]
[313779958,1707719439830,-500.0,0.00022947,2]
[313779959,1707719439839,-341.24399312,0.00022947,2]
[313779960,1707719439851,-158.75600688,0.00022947,2]
[313779961,1707719439860,-500.0,0.00022947,2]
[313779962,1707719439869,-1251.84,0.00022947,2]
[313779963,1707719439877,-161.54144241,0.00022947,2]
[313779964,1707719439889,-338.45855759,0.00022947,2]
[313779965,1707719439899,-392.04210529,0.00022947,2]
[313779966,1707719439916,-107.95789471,0.00022947,2]
[313779967,1707719439925,-500.0,0.00022947,2]
[313779968,1707719439934,-421.4089183,0.00022947,2]
[313779973,1707719440016,-78.5910817,0.00022947,2]
[313779975,1707719440025,-500.0,0.00022947,2]
[313779976,1707719440034,-500.0,0.00022947,2]
[313779977,1707719440043,-545.57,0.00022947,2]
[313779978,1707719440053,-500.0,0.00022947,2]
[313779979,1707719440066,-500.0,0.00022947,2]
[313779980,1707719440075,-500.0,0.00022947,2]
[313779981,1707719440084,-500.0,0.00022947,2]
[313779982,1707719440094,-500.0,0.00022947,2]
[313779983,1707719440104,-279.059146,0.00022947,2]
[313779984,1707719440112,-1066.9,0.00022947,2]
[313779985,1707719440121,-519.0,0.00022947,2]
[313779986,1707719440130,-500.0,0.00022947,2]
[313779987,1707719440140,-500.0,0.00022947,2]
[313779988,1707719440149,-500.0,0.00022947,2]
[313779989,1707719440158,-500.0,0.00022947,2]
[313779990,1707719440167,-500.0,0.00022947,2]
[313779991,1707719440177,-701.35,0.00022947,2]
[313779992,1707719440186,-617.93,0.00022947,2]
[313779993,1707719440195,-500.0,0.00022947,2]
[313779994,1707719440204,-500.0,0.00022947,2]
[313779995,1707719440213,-500.0,0.00022947,2]
[313779996,1707719440222,-500.0,0.00022947,2]
[313779997,1707719440231,-500.0,0.00022947,2]
[313779998,1707719440241,-500.0,0.00022947,2]
[313779999,1707719440250,-1037.76,0.00022947,2]
[313780000,1707719440260,-563.25,0.00022947,2]
[313780001,1707719440269,-500.0,0.00022947,2]
[313780002,1707719440278,-500.0,0.00022947,2]
[313780003,1707719440287,-500.0,0.00022947,2]
[313780004,1707719440297,-655.22,0.00022947,2]
[313780005,1707719440307,-500.0,0.00022947,2]
[313780006,1707719440316,-560.7,0.00022947,2]
[313780007,1707719440326,-604.05,0.00022947,2]
[313780008,1707719440336,-500.0,0.00022947,2]
[313780009,1707719440345,-250.0,0.00022947,2]
[313780010,1707719440355,-1118.23,0.00022947,2]
[313780011,1707719440364,-2431.01,0.00022947,2]
[313780012,1707719440374,-286.20731517,0.00022947,2]
[313780013,1707719440387,-213.79268483,0.00022947,2]
[313780014,1707719440396,-500.0,0.00022947,2]
[313780015,1707719440406,-500.0,0.00022947,2]
[313780016,1707719440415,-615.18,0.00022947,2]
[313780017,1707719440426,-500.0,0.00022947,2]
[313780018,1707719440435,-500.0,0.00022947,2]
[313780019,1707719440445,-500.0,0.00022947,2]
[313780020,1707719440454,-717.66,0.00022947,2]
[313780021,1707719440463,-500.0,0.00022947,2]
[313780022,1707719440473,-838.33,0.00022947,2]
[313780023,1707719440483,-500.0,0.00022947,2]
[313780024,1707719440492,-500.0,0.00022947,2]
[313780025,1707719440502,-500.0,0.00022947,2]
[313780026,1707719440511,-500.0,0.00022947,2]
[313780027,1707719440521,-579.32,0.00022947,2]
[313780028,1707719440531,-500.0,0.00022947,2]
[313780029,1707719440540,-500.0,0.00022947,2]
[313780030,1707719440550,-576.01,0.00022947,2]
[313780031,1707719440559,-500.0,0.00022947,2]
[313780032,1707719440568,-553.87,0.00022947,2]
[313780033,1707719440577,-500.0,0.00022947,2]
[313780034,1707719440586,-500.0,0.00022947,2]
[313780035,1707719440596,-3303.74,0.00022947,2]
[313780036,1707719440605,-500.0,0.00022947,2]
[313780037,1707719440614,-500.0,0.00022947,2]
[313780038,1707719440624,-500.0,0.00022947,2]
[313780039,1707719440633,-500.0,0.00022947,2]
[313780040,1707719440642,-500.0,0.00022947,2]
[313780041,1707719440651,-3491.72,0.00022947,2]
[313780042,1707719440661,-500.0,0.00022947,2]
[313780043,1707719440670,-500.0,0.00022947,2]
[313780044,1707719440680,-500.0,0.00022947,2]
[313780045,1707719440689,-500.0,0.00022947,2]
[313780046,1707719440699,-2750.99,0.00022947,2]
[313780047,1707719440708,-500.0,0.00022947,2]
[313780048,1707719440717,-2524.18,0.00022947,2]
[313780049,1707719440726,-500.0,0.00022947,2]
[313780050,1707719440736,-552.65,0.00022947,2]
[313780051,1707719440745,-500.0,0.00022947,2]
[313780052,1707719440755,-1093.91,0.00022947,2]
[313780053,1707719440764,-571.59,0.00022947,2]
[313780054,1707719440773,-1897.08,0.00022947,2]
[313780055,1707719440783,-723.8,0.00022947,2]
[313780056,1707719440792,-500.0,0.00022947,2]
[313780057,1707719440802,-197.64640419,0.00022947,2]
[313780058,1707719440811,-500.0,0.00022947,2]
[313780059,1707719440821,-1276.12,0.00022947,2]
[313780060,1707719440831,-500.0,0.00022947,2]
[313780061,1707719440840,-817.39,0.00022947,2]
[313780062,1707719440849,-500.0,0.00022947,2]
[313780063,1707719440858,-872.34,0.00022947,2]
[313780064,1707719440868,-500.0,0.00022947,2]
[313780065,1707719440877,-688.51,0.00022947,2]
[313780066,1707719440887,-744.35,0.00022947,2]
[313780067,1707719440896,-500.0,0.00022947,2]
[313780068,1707719440905,-500.0,0.00022947,2]
[313780069,1707719440915,-586.25,0.00022947,2]
[313780070,1707719440925,-254.14966073,0.00022947,2]
[313780071,1707719440934,-500.0,0.00022947,2]
[313780072,1707719440943,-551.61,0.00022947,2]
[313780073,1707719440952,-500.0,0.00022947,2]
[313780074,1707719440962,-689.16,0.00022947,2]
[313780075,1707719440972,-1610.0,0.00022947,2]
[313780076,1707719440981,-3921.14,0.00022947,2]
[313780077,1707719440990,-580.82,0.00022947,2]
[313780078,1707719441000,-500.0,0.00022947,2]
[313780079,1707719441010,-500.0,0.00022947,2]
[313780080,1707719441019,-500.0,0.00022947,2]
[313780081,1707719441028,-500.0,0.00022947,2]
[313780082,1707719441038,-500.0,0.00022947,2]
[313780083,1707719441047,-383.08900407,0.00022947,2]
[313780084,1707719441061,-622.27,0.00022947,2]
[313780085,1707719441071,-500.0,0.00022947,2]
[313780086,1707719441080,-396.3406979,0.00022947,2]
[313780087,1707719441094,-103.6593021,0.00022947,2]
[313780088,1707719441104,-500.0,0.00022947,2]
[313780089,1707719441114,-500.0,0.00022947,2]
[313780090,1707719441123,-943.23,0.00022947,2]
[313780091,1707719441134,-500.0,0.00022947,2]
[313780092,1707719441143,-500.0,0.00022947,2]
[313780093,1707719441152,-500.0,0.00022947,2]
[313780094,1707719441161,-500.0,0.00022947,2]
[313780095,1707719441172,-500.0,0.00022947,2]
[313780096,1707719441182,-1895.49,0.00022947,2]
[313780097,1707719441191,-500.0,0.00022947,2]
[313780098,1707719441201,-1966.36,0.00022947,2]
[313780099,1707719441210,-500.0,0.00022947,2]
[313780100,1707719441220,-501.46,0.00022947,2]
[313780101,1707719441230,-500.0,0.00022947,2]
[313780102,1707719441239,-500.0,0.00022947,2]
[313780103,1707719441248,-500.0,0.00022947,2]
[313780104,1707719441257,-640.83,0.00022947,2]
[313780105,1707719441267,-3028.95,0.00022947,2]
[313780106,1707719441276,-500.0,0.00022947,2]
[313780107,1707719441285,-199.61297718,0.00022948,2]
[313780108,1707719441295,-500.0,0.00022948,2]
[313780109,1707719441304,-500.0,0.00022948,2]
[313780110,1707719441314,-500.0,0.00022948,2]
[313780111,1707719441324,-500.0,0.00022948,2]
[313780112,1707719441333,-500.0,0.00022948,2]
[313780113,1707719441343,-157.48794692,0.00022948,2]
[313780114,1707719441353,-500.0,0.00022948,2]
[313780115,1707719441362,-184.44,0.00022948,2]
[313780116,1707719441372,-756.10278846,0.00022948,2]
[313780117,1707719441382,-500.0,0.00022948,2]
[313780118,1707719441391,-500.0,0.00022948,2]
[313780119,1707719441401,-500.0,0.00022948,2]
[313780120,1707719441411,-500.0,0.00022948,2]
[313780121,1707719441420,-500.0,0.00022948,2]
[313780122,1707719441430,-500.0,0.00022948,2]
[313780123,1707719441439,-500.0,0.00022948,2]
[313780124,1707719441448,-500.0,0.00022948,2]
[313780125,1707719441458,-500.0,0.00022948,2]
[313780126,1707719441468,-500.0,0.00022948,2]
[313780127,1707719441477,-500.0,0.00022948,2]
[313780128,1707719441486,-500.0,0.00022948,2]
[313780129,1707719441496,-504.69,0.00022948,2]
[313780130,1707719441505,-377.67234719,0.00022948,2]
[313780131,1707719441515,-500.0,0.00022948,2]
[313780132,1707719441524,-585.58,0.00022948,2]
[313780133,1707719441533,-500.0,0.00022948,2]
[313780134,1707719441543,-500.0,0.00022948,2]
[313780135,1707719441552,-500.0,0.00022948,2]
[313780136,1707719441562,-576.74,0.00022948,2]
[313780137,1707719441571,-500.0,0.00022948,2]
[313780138,1707719441581,-500.0,0.00022948,2]
[313780139,1707719441591,-584.21,0.00022948,2]
[313780140,1707719441601,-500.0,0.00022948,2]
[313780141,1707719441612,-500.0,0.00022948,2]
[313780142,1707719441622,-514.38383176,0.00022948,2]
[313780143,1707719441632,-500.0,0.00022948,2]
[313780144,1707719441642,-500.0,0.00022948,2]
[313780145,1707719441652,-500.0,0.00022948,2]
[313780146,1707719441662,-1100.29,0.00022948,2]
[313780147,1707719441672,-188.96158181,0.00022948,2]
[313780148,1707719441682,-695.25,0.00022948,2]
[313780149,1707719441691,-500.0,0.00022948,2]
[313780150,1707719441700,-500.0,0.00022948,2]
[313780151,1707719441710,-686.78,0.00022948,2]
[313780152,1707719441719,-501.99,0.00022948,2]
[313780153,1707719441733,-500.0,0.00022948,2]
[313780154,1707719441742,-585.8784964,0.00022948,2]
[313780155,1707719441752,-500.0,0.00022948,2]
[313780156,1707719441761,-194.76059915,0.00022948,2]
[313780157,1707719441775,-305.23940085,0.00022948,2]
[313780158,1707719441785,-500.0,0.00022948,2]
[313780159,1707719441795,-500.0,0.00022948,2]
[313780160,1707719441804,-563.74,0.00022948,2]
[313780161,1707719441814,-500.0,0.00022948,2]
[313780162,1707719441823,-588.39,0.00022948,2]
[313780163,1707719441833,-500.0,0.00022948,2]
[313780164,1707719441843,-500.0,0.00022948,2]
[313780165,1707719441852,-983.23,0.00022948,2]
[313780166,1707719441862,-500.0,0.00022948,2]
[313780167,1707719441871,-614.35,0.00022948,2]
[313780168,1707719441881,-925.0,0.00022948,2]
[313780169,1707719441890,-500.0,0.00022948,2]
[313780170,1707719441899,-500.0,0.00022948,2]
[313780171,1707719441909,-500.0,0.00022948,2]
[313780172,1707719441918,-500.0,0.00022948,2]
[313780173,1707719441928,-586.84,0.00022948,2]
[313780174,1707719441937,-500.0,0.00022948,2]
[313780175,1707719441946,-500.0,0.00022948,2]
[313780176,1707719441956,-500.0,0.00022948,2]
[313780177,1707719441966,-500.0,0.00022948,2]
[313780178,1707719441975,-500.0,0.00022948,2]
[313780179,1707719441984,-569.82239678,0.00022948,2]
[313780180,1707719441994,-247.57690468,0.00022948,2]
[313780181,1707719442003,-500.0,0.00022948,2]
[313780182,1707719442013,-500.0,0.00022948,2]
[313780183,1707719442022,-500.0,0.00022948,2]
[313780184,1707719442032,-500.0,0.00022948,2]
[313780185,1707719442043,-500.0,0.00022948,2]
[313780186,1707719442058,-500.0,0.00022948,2]
[313780187,1707719442068,-591.49,0.00022948,2]
[313780188,1707719442077,-105.67210099,0.00022948,2]
[313780189,1707719442090,-166.42584174,0.00022948,2]
[313780190,1707719442100,-153.60166245,0.00022948,2]
[313780191,1707719442112,-285.49172499,0.00022948,2]
[313780204,1707719442670,-60.90661256,0.00022948,2]
[313780205,1707719442680,-500.0,0.00022948,2]
[313780206,1707719442690,-78.2399292,0.00022948,2]
[313780207,1707719442724,-421.7600708,0.00022948,2]
[313780208,1707719442734,-197.64910657,0.00022948,2]
[313780209,1707719442970,-302.35089343,0.00022948,2]
[313780210,1707719442980,-40.23124781,0.00022948,2]
[313780211,1707719443192,-459.76875219,0.00022948,2]
[313780212,1707719443202,-586.2,0.00022948,2]
[313780213,1707719443211,-500.0,0.00022948,2]
[313780214,1707719443220,-500.0,0.00022948,2]
[313780215,1707719443229,-500.0,0.00022948,2]
[313780216,1707719443239,-500.0,0.00022948,2]
[313780217,1707719443248,-500.0,0.00022948,2]
[313780218,1707719443257,-243.3368773,0.00022948,2]
[313780219,1707719443267,-365.7380657,0.00022948,2]
[313780220,1707719443276,-500.0,0.00022948,2]
[313780221,1707719443285,-500.0,0.00022948,2]
[313780222,1707719443295,-777.03,0.00022948,2]
[313780223,1707719443304,-220.36622106,0.00022948,2]
[313780224,1707719443317,-279.63377894,0.00022948,2]
[313780225,1707719443326,-74.02622104,0.00022948,2]
[313780226,1707719443338,-593.05377896,0.00022948,2]
[313780227,1707719443348,-500.0,0.00022948,2]
[313780228,1707719443357,-500.0,0.00022948,2]
[313780229,1707719443367,-500.0,0.00022948,2]
[313780230,1707719443377,-500.0,0.00022948,2]
[313780231,1707719443387,-500.0,0.00022948,2]
[313780232,1707719443396,-210.88995275,0.00022948,2]
[313780233,1707719443417,-492.09004725,0.00022948,2]
[313780234,1707719443428,-243.34604369,0.00022949,2]
[313780235,1707719443444,-256.65395631,0.00022949,2]
[313780236,1707719443454,-559.56704398,0.00022949,2]
[313780237,1707719443466,-245.84295602,0.00022949,2]
[313780238,1707719443475,-279.37050329,0.00022949,2]
[313780239,1707719443487,-220.62949671,0.00022949,2]
[313780240,1707719443496,-500.0,0.00022949,2]
[313780241,1707719443505,-117.8509543,0.00022949,2]
[313780242,1707719443517,-382.1490457,0.00022949,2]
[313780243,1707719443526,-672.42,0.00022949,2]
[313780244,1707719443535,-500.0,0.00022949,2]
[313780245,1707719443544,-642.83,0.00022949,2]
[313780246,1707719443553,-500.0,0.00022949,2]
[313780247,1707719443562,-117.02543345,0.00022949,2]
[313780248,1707719443582,-382.97456655,0.00022949,2]
[313780249,1707719443592,-755.52544345,0.00022949,2]
[313780250,1707719443608,-543.43566378,0.00022949,2]
[313780251,1707719444052,-156.68889277,0.00022949,2]
[313780252,1707719444062,-496.34585278,0.0002299,2]
[313780253,1707719444073,-8893.20738506,0.0002299,2]
[313780254,1707719444093,-1425.81963666,0.0002299,2]
[313780255,1707719444113,-543.33974753,0.0002299,2]
[313780256,1707719444124,-394.43201727,0.0002299,2]
[313780257,1707719444136,-1101.317464,0.0002299,2]
[313780258,1707719444239,-9252.27534733,0.0002299,2]
[313780259,1707719445529,-1121.34611011,0.0002253,2]
[313780260,1707719445539,-2248.17,0.00022945,2]
[313780261,1707719445549,-500.0,0.00022945,2]
[313780262,1707719445558,-12039.63476777,0.0002299,2]
[313780263,1707719445583,-974.34839481,0.0002299,2]
[313780264,1707719445595,-635.38561209,0.0002299,2]
[313780265,1707719445692,-865.07617275,0.0002299,2]
[313780266,1707719445806,-3828.72717095,0.0002299,2]
[313780267,1707719445822,-405.81528365,0.0002299,2]
[313780268,1707719469394,157.40413539,0.00022351,2]
[313780269,1707719471842,2848.46340406,0.00022239,2]
[313780270,1707719473455,1445.0,0.000282,120]
[313780271,1707719475734,155.0,0.00022351,2]
[313780272,1707719519612,2000.0,0.00022029,2]
[313780273,1707719603831,222.90099627,0.000222,2]
[313780275,1707719652428,166.97,0.00021961,2]
[313780279,1707719699357,840.0,0.00021984,2]
[313780280,1707719702219,352.58,0.00022,2]
[313780281,1707719711538,150.0,0.00021976,2]
[313780285,1707719744621,166.8,0.00022112,2]
[313780286,1707719781387,250.0,0.00021926,2]
[313780287,1707719784274,164.52,0.00020008,2]
[313780288,1707719784371,164.52,0.00022272,2]
[313780289,1707719814156,529.13,0.00021937,2]
[313780290,1707719835655,230.28,0.00021928,2]
[313780291,1707719851791,2030.89,0.00021937,2]
[313780292,1707719869393,23890.0,0.00021933,2]
[313780293,1707720031134,-375.82127149,0.00022576,2]
[313780294,1707720031154,-1046.94308784,0.00022576,2]
[313780295,1707720031174,-577.23564067,0.00022576,2]
[313780296,1707720031493,-124.50864378,0.00022576,2]
[313780297,1707720031514,-155.0,0.00022577,2]
[313780298,1707720031535,-1720.49135622,0.00022577,2]
[313780299,1707720032585,-2000.0,0.00022577,2]
[313780300,1707720090412,166.97,0.00021963,2]
[313780301,1707720142525,328.0,0.00021941,2]
[313780302,1707720159803,-775.53574364,0.00022573,2]
[313780303,1707720159823,-1224.46425636,0.00022573,2]
[313780304,1707720161678,-154.53697776,0.00022573,2]
[313780305,1707720161699,-402.67523113,0.00022574,2]
[313780306,1707720161721,-183.69338978,0.00022598,2]
[313780307,1707720161741,-311.79750185,0.00022697,2]
[313780308,1707720161761,-798.6986,0.00022698,2]
[313780309,1707720161781,-148.59829948,0.000227,2]
[313780310,1707720273987,155.86,0.00020037,2]
[313780311,1707720600682,166.97,0.0002191,2]
[313780317,1707720622481,737.6,0.0002191,2]
[313780342,1707720631638,-775.53574364,0.00022424,2]
[313780344,1707720631647,-577.38591441,0.00022425,2]
[313780346,1707720631657,-155.86,0.00022427,2]
[313780348,1707720631667,-402.67523113,0.00022572,2]
[313780350,1707720631677,-851.40170052,0.000227,2]
[313780351,1707720631686,-150.0,0.00022755,2]
[313780353,1707720631695,-3651.70195557,0.00022763,5]
[313780355,1707720631705,-623.68545473,0.00022765,2]
[313780357,1707720631716,-2087.58882729,0.00022765,2]
[313780359,1707720631732,-66.03932847,0.00022765,2]
[313780361,1707720631741,-577.42334421,0.00022766,2]
[313780371,1707720631875,-922.19017025,0.00022766,2]
[313780372,1707720631887,-2167.23800001,0.00022766,2]
[313780374,1707720631898,-17317.19077123,0.00022766,2]
[313780376,1707720631907,-150.0,0.00022769,2]
[313780378,1707720631916,-473.2176,0.00022798,2]
[313780379,1707720631925,-1041.066075,0.00022844,2]
[313780381,1707720631934,-2195.3111,0.00022844,2]
[313780382,1707720631943,-3264.74386686,0.00022845,2]
[313780383,1707720631953,-7370.0386,0.00022846,2]
[313780384,1707720631961,-1000.0,0.00022846,2]
[313780385,1707720631971,-150.0,0.00022847,2]
[313780386,1707720631980,-5000.0,0.0002285,7]
[313780387,1707720631989,-327.09040298,0.00022898,3]
[313780388,1707720631998,-24428.08155793,0.00022898,2]
[313780389,1707720632067,-9613.844,0.00022898,2]
[313780390,1707720634142,-2500.0,0.00022844,2]
[313780393,1707720634152,-1315.10117222,0.00022898,2]
[313780406,1707720634274,-1169.53619494,0.00022898,2]
[313780409,1707720637840,-7189.24602449,0.00022898,2]
[313780410,1707720637916,-700.0,0.00022898,2]
[313780411,1707720637988,-24410.83085042,0.00022898,2]
[313780412,1707720637997,-150.0,0.00022899,2]
[313780413,1707720638006,-422.44130521,0.000229,2]
[313780414,1707720638067,-92.16869479,0.000229,2]
[313780415,1707720638077,-2068.82265326,0.000229,2]
[313780416,1707720638086,-239.30480124,0.000229,2]
[313780417,1707720638095,-852.5363661,0.000229,2]
[313780418,1707720638104,-477.05398331,0.00022942,2]
[313780419,1707720638113,-1213.5537232,0.00022942,2]
[313780420,1707720638122,-323.50443899,0.00022943,2]
[313780421,1707720638132,-227.73656563,0.00022943,2]
[313780422,1707720638141,-698.62244501,0.00022943,2]
[313780423,1707720638150,-198.21286879,0.00022943,2]
[313780424,1707720638159,-4562.11870845,0.00022943,2]
[313780425,1707720638168,-183.85873504,0.00022943,2]
[313780426,1707720638177,-1436.92381991,0.00022943,2]
[313780427,1707720638187,-500.0,0.00022943,2]
[313780428,1707720638196,-2117.81,0.00022943,2]
[313780429,1707720638205,-500.0,0.00022943,2]
[313780430,1707720638214,-500.0,0.00022943,2]
[313780431,1707720638223,-500.0,0.00022943,2]
[313780432,1707720638235,-8411.86,0.00022943,2]
[313780433,1707720638243,-706.42,0.00022943,2]
[313780434,1707720638253,-500.0,0.00022943,2]
[313780435,1707720638261,-2497.29,0.00022943,2]
[313780436,1707720638270,-3061.19,0.00022943,2]
[313780437,1707720638280,-500.0,0.00022943,2]
[313780438,1707720638289,-256.70457569,0.00022943,2]
[313780439,1707720638301,-243.29542431,0.00022943,2]
[313780440,1707720638311,-515.78,0.00022943,2]
[313780442,1707720638320,-500.0,0.00022943,2]
[313780444,1707720638329,-5819.11,0.00022943,2]
[313780446,1707720638338,-509.52,0.00022943,2]
[313780448,1707720638347,-812.46,0.00022943,2]
[313780450,1707720638356,-500.0,0.00022943,2]
[313780451,1707720638365,-756.78,0.00022943,2]
[313780453,1707720638374,-564.31,0.00022943,2]
[313780455,1707720638383,-500.0,0.00022943,2]
[313780457,1707720638392,-603.97,0.00022943,2]
[313780459,1707720638402,-374.7971534,0.00022943,2]
[313780460,1707720640293,-293.09090304,0.00022943,2]